bitfinex/quotes_ETHUSD_20250517
["timestamp","ask_amount","ask_price","bid_price","bid_amount"]
[1747510456196,4.04326176,2473.3,2473.0,0.38486054]
[1747510456599,7.554,2473.5,2473.0,0.38486054]
[1747510456797,4.04333973,2473.3,2473.0,0.38486054]
[1747510457003,4.04338058,2473.2,2473.0,1.7507508]
[1747510457810,4.04338058,2473.2,2473.0,1.36589026]
[1747510458715,4.04308998,2473.4,2473.0,1.36589026]
[1747510458918,4.04320347,2473.3,2473.0,1.36589026]
[1747510459505,7.553,2473.6,2473.0,1.36589026]
[1747510459506,4.04342616,2473.2,2473.0,1.36589026]
[1747510460176,4.04342616,2473.2,2473.1,0.38567054]
[1747510463135,4.04342616,2473.2,2472.9,8.3541]
[1747510463294,4.04351634,2473.1,2472.9,8.3541]
[1747510463791,4.04351634,2473.1,2472.9,9.01759866]
[1747510463993,4.0434351,2473.2,2472.9,9.01759866]
[1747510465419,4.0434351,2473.2,2473.0,0.38618356]
[1747510465926,11.62977293,2473.1,2473.0,0.38618356]
[1747510466227,20.58530814,2473.1,2473.0,0.38618356]
[1747510466390,4.04416225,2472.7,2472.6,0.48085308]
[1747510467825,4.04416225,2472.7,2472.6,0.70730902]
[1747510468128,4.04403408,2472.8,2472.6,0.70730902]
[1747510468432,4.04386872,2472.9,2472.7,0.8023]
[1747510468433,4.04384062,2472.9,2472.7,0.8023]
[1747510469107,4.0439987,2472.8,2472.7,0.8023]
[1747510469424,4.0439987,2472.8,2472.7,1.18880628]
[1747510469632,4.0439987,2472.8,2472.7,1.41540855]
[1747510470126,4.4837987,2472.8,2472.7,0.61310855]
[1747510470930,4.4837987,2472.8,2472.7,0.38650628]
[1747510473832,4.04432581,2472.6,2472.5,0.38650628]
[1747510474721,4.04432581,2472.6,2472.5,0.61305101]
[1747510479105,4.93141985,2472.6,2472.5,0.61305101]
[1747510479303,4.89715506,2472.6,2472.5,0.61305101]
[1747510479507,4.93141985,2472.6,2472.5,0.61305101]
[1747510479920,4.93141985,2472.6,2472.5,0.38650628]
[1747510480326,4.93141985,2472.6,2472.0,0.48085308]
[1747510480523,7.552,2472.5,2472.1,0.88341531]
[1747510480717,4.04465296,2472.4,2472.2,0.22654068]
[1747510481537,4.04493835,2472.3,2472.2,0.22654068]
[1747510483844,4.04493835,2472.3,2472.2,0.6130776]
[1747510485125,4.04493835,2472.3,2472.2,0.38653692]
[1747510486251,4.04469777,2472.4,2472.3,0.8243]
[1747510486842,4.04469777,2472.4,2472.2,0.38653692]
[1747510487147,4.04469777,2472.4,2472.3,0.38653692]
[1747510493260,4.04469777,2472.4,2472.3,0.61322594]
[1747510493656,4.04469777,2472.4,2472.3,0.38653692]
[1747510496059,4.04469777,2472.4,2472.3,0.61344177]
[1747510503777,4.51876256,2472.4,2472.3,0.61344177]
[1747510504443,4.48449777,2472.4,2472.3,0.61344177]
[1747510504678,4.51876256,2472.4,2472.3,0.61344177]
[1747510505173,4.48449777,2472.4,2472.3,0.61344177]
[1747510505682,4.51876256,2472.4,2472.3,0.61344177]
[1747510508181,14.89017844,2472.4,2472.3,0.61344177]
[1747510508484,17.33070291,2472.4,2472.3,0.38653692]
[1747510510063,14.89017844,2472.4,2472.3,0.38653692]
[1747510510992,12.04469777,2472.4,2472.3,0.38653692]
[1747510511198,19.59669777,2472.4,2472.3,0.38653692]
[1747510514608,4.04469777,2472.4,2472.3,0.38653692]
[1747510514771,4.04469777,2472.4,2472.3,0.61373078]
[1747510516392,14.51948703,2472.4,2472.3,0.61373078]
[1747510516590,16.38560356,2472.4,2472.3,0.38653692]
[1747510518306,4.04498017,2472.2,2472.1,0.48085308]
[1747510519009,4.04498017,2472.2,2472.1,0.70806444]
[1747510520507,4.04498017,2472.2,2472.1,0.61497814]
[1747510522606,23.06056943,2472.2,2472.1,0.61497814]
[1747510522908,26.1413167,2472.2,2472.1,0.38776678]
[1747510524034,4.04645328,2471.3,2471.2,0.48085308]
[1747510524475,7.551,2471.6,2471.3,0.7915]
[1747510524682,4.04628955,2471.4,2471.3,0.7915]
[1747510525173,4.04628955,2471.4,2471.3,0.38718473]
[1747510526814,4.04612583,2471.5,2471.1,0.7915]
[1747510526815,4.04645328,2471.3,2471.1,0.7915]
[1747510527018,4.04661702,2471.2,2471.1,0.7915]
[1747510527714,4.04694455,2471.0,2470.9,0.7915]
[1747510527920,4.04710834,2470.9,2470.8,0.48085308]
[1747510530520,4.08137313,2470.9,2470.8,0.48085308]
[1747510530916,4.04759977,2470.6,2470.5,0.38650703]
[1747510531579,11.60059977,2470.6,2470.5,0.38650703]
[1747510532826,4.04782811,2470.5,2470.2,0.48085308]
[1747510532989,4.04755918,2470.7,2470.3,0.7915]
[1747510533322,4.04755918,2470.7,2470.4,0.53205214]
[1747510533622,4.04776361,2470.5,2470.4,0.53205214]
[1747510533799,4.04792746,2470.4,2470.3,0.7915]
[1747510534820,4.04776361,2470.5,2470.3,0.7915]
[1747510535214,4.04792746,2470.4,2470.3,0.7915]
[1747510535926,4.04777718,2470.5,2470.3,0.7915]
[1747510536224,4.04752265,2470.7,2470.3,0.7915]
[1747510536389,4.04728199,2470.8,2470.4,1.23937107]
[1747510536725,4.04774841,2470.6,2470.4,1.23937107]
[1747510537429,4.04776361,2470.5,2470.3,0.7915]
[1747510537626,4.04792746,2470.4,2470.3,0.7915]
[1747510537823,4.04783989,2470.5,2470.3,0.7915]
[1747510538203,4.04771324,2470.6,2470.3,0.7915]
[1747510538406,4.04771725,2470.6,2470.3,0.7915]
[1747510538608,0.55,2470.8,2470.3,0.7915]
[1747510538995,4.04824831,2470.3,2470.0,0.787]
[1747510539203,4.04824831,2470.3,2470.0,8.342]
[1747510539615,4.04815441,2470.3,2470.0,8.342]
[1747510539809,4.0476041,2470.6,2470.0,8.342]
[1747510540005,4.04841909,2470.1,2470.0,0.787]
[1747510540216,4.04874691,2469.9,2469.8,18.26]
[1747510540732,4.04874691,2469.9,2469.8,0.787]
[1747510541504,4.04863812,2470.0,2469.8,0.787]
[1747510541710,4.04840024,2470.2,2469.8,0.787]
[1747510541910,4.04844703,2470.1,2469.8,1.27060953]
[1747510542733,7.555,2470.6,2469.8,1.27060953]
[1747510543052,4.04774663,2470.6,2470.0,4.83544157]
[1747510543352,4.04754959,2470.7,2470.2,4.83514059]
[1747510543650,4.04754959,2470.7,2470.3,4.04808761]
[1747510543816,4.04752956,2470.7,2470.2,4.83520444]
[1747510544010,4.04735993,2470.8,2470.3,4.04806168]
[1747510544344,10.05,2471.4,2470.5,0.7558]
[1747510544651,7.572,2471.4,2470.6,7.555]
[1747510544837,4.04662361,2471.2,2470.7,4.0473363]
[1747510545236,4.04653389,2471.3,2470.8,4.04724943]
[1747510545441,4.0466947,2471.2,2470.9,0.7558]
[1747510553184,4.04181853,2471.2,2470.9,0.7558]
[1747510553486,4.04181853,2471.2,2470.9,1.23611931]
[1747510554163,4.04181853,2471.2,2471.0,0.3866953]
[1747510554798,4.328385,2471.5,2471.1,12.37084839]
[1747510555093,8.37451861,2471.5,2471.1,12.37088618]
[1747510555300,10.05,2473.6,2471.4,0.7662]
[1747510555601,0.4398,2473.8,2473.2,4.80954465]
[1747510555804,1.61407106,2474.0,2473.2,12.36754465]
[1747510556005,1.61407106,2474.0,2473.2,20.36754465]
[1747510556567,1.61407106,2474.0,2473.2,12.80954465]
[1747510556891,4.04225209,2473.9,2473.2,31.44274759]
[1747510557062,4.04225209,2473.9,2473.2,23.88474759]
[1747510557263,4.04141139,2474.4,2473.2,23.88474759]
[1747510557264,4.04148628,2474.4,2473.8,4.04224909]
[1747510557478,4.04148628,2474.4,2473.8,7.558]
[1747510557694,4.04148628,2474.4,2473.9,0.7662]
[1747510558092,15.53327324,2474.6,2473.9,4.80833188]
[1747510558293,4.04147393,2474.4,2473.9,0.7662]
[1747510559015,4.04156457,2474.3,2473.9,0.7662]
[1747510559383,4.04139985,2474.4,2473.9,0.7662]
[1747510559583,4.04158003,2474.3,2473.9,0.7662]
[1747510559811,4.04145107,2474.4,2473.9,0.7662]
[1747510560190,8.0,2474.5,2473.9,0.7662]
[1747510560389,4.04148358,2474.4,2473.9,0.7662]
[1747510560597,4.04142413,2474.4,2473.9,0.7662]
[1747510561199,4.04165759,2474.3,2473.9,0.7662]
[1747510562915,4.04127787,2474.5,2473.9,0.7662]
[1747510563113,0.4398,2474.8,2474.0,0.04041432]
[1747510563321,0.9898,2474.8,2474.0,0.04041432]
[1747510563618,4.04130738,2474.5,2474.0,4.08237089]
[1747510563919,7.558,2475.0,2474.0,0.04041432]
[1747510564119,4.03966803,2475.5,2475.0,0.7642]
[1747510564295,4.03893533,2475.9,2475.1,7.59240078]
[1747510564498,4.03929996,2475.7,2475.1,7.552]
[1747510564820,8.0988,2476.1,2475.0,8.3162]
[1747510565017,4.04009262,2475.2,2475.0,8.3162]
[1747510565552,4.04024079,2475.1,2475.0,0.7642]
[1747510565687,4.04083116,2474.8,2474.4,8.3162]
[1747510565889,0.03426479,2475.3,2474.5,7.552]
[1747510566113,4.04080719,2474.8,2474.5,7.552]
[1747510566432,4.04090032,2474.7,2474.5,7.552]
[1747510566987,4.04090032,2474.7,2474.4,0.7642]
[1747510567319,4.04076973,2474.8,2474.5,7.55]
[1747510567516,4.04069689,2474.9,2474.5,7.55]
[1747510567517,4.04064338,2474.9,2474.5,7.55]
[1747510567719,8.55,2475.4,2474.9,0.00665833]
[1747510567919,4.04040404,2475.0,2474.9,0.00665833]
[1747510568630,4.07466883,2475.0,2474.9,0.00665833]
[1747510569917,4.04040404,2475.0,2474.9,0.00665833]
[1747510570787,4.04089384,2474.7,2474.6,0.00665833]
[1747510571526,7.654,2475.0,2474.6,0.83864416]
[1747510571731,4.04047407,2475.0,2474.6,0.83864416]
[1747510572221,4.0406169,2474.9,2474.6,0.83864416]
[1747510573760,4.04047407,2475.0,2474.6,0.83864416]
[1747510573958,4.04018632,2475.2,2474.7,7.548]
[1747510573959,4.0408087,2474.8,2474.7,7.548]
[1747510574752,4.04059612,2474.9,2474.7,7.548]
[1747510574959,4.03968457,2475.5,2474.8,0.85730746]
[1747510575274,4.03982301,2475.4,2474.8,8.4709]
[1747510575453,4.03968327,2475.5,2474.8,12.51160076]
[1747510575626,4.03968327,2475.5,2474.9,2.49390687]
[1747510576018,4.03953925,2475.6,2474.9,2.49390687]
[1747510576221,4.03976113,2475.4,2475.0,0.04039979]
[1747510576464,4.03953925,2475.6,2475.0,0.8169]
[1747510576760,4.03942478,2475.6,2475.0,0.8169]
[1747510576953,4.03942478,2475.6,2475.1,0.73578861]
[1747510577160,4.03942478,2475.6,2475.2,7.547]
[1747510577816,1.0,2476.1,2475.4,0.8169]
[1747510578123,5.03867742,2476.1,2475.6,0.8169]
[1747510578325,1.0,2476.1,2475.7,1.60779]
[1747510578526,4.03878953,2476.0,2475.7,1.60779]
[1747510578723,5.03864292,2476.1,2475.7,1.60779]
[1747510579082,4.03894588,2475.9,2475.7,7.546]
[1747510579847,4.03885835,2476.0,2475.7,7.546]
[1747510580043,4.03877221,2476.0,2475.7,7.546]
[1747510580447,5.03862836,2476.1,2475.7,7.546]
[1747510580656,1.0,2476.1,2475.7,7.546]
[1747510580857,1.0,2476.1,2475.8,1.24023185]
[1747510581135,5.03862133,2476.1,2475.8,1.24023185]
[1747510582190,1.0,2476.1,2475.9,0.7957]
[1747510582467,0.99561615,2476.1,2475.9,1.17467416]
[1747510582667,4.03877221,2476.0,2475.9,0.37897416]
[1747510583775,0.99561615,2476.1,2476.0,0.8327]
[1747510583931,0.99561615,2476.1,2476.0,2.69866742]
[1747510584273,0.99561615,2476.1,2476.0,6.73743963]
[1747510584571,0.99561615,2476.1,2476.0,2.69866742]
[1747510585070,0.02679323,2476.1,2476.0,3.0801296]
[1747510586455,0.02679323,2476.1,2476.0,7.11890181]
[1747510586777,4.06540233,2476.1,2476.0,0.38146218]
[1747510586957,4.57823531,2476.1,2476.0,0.38146218]
[1747510589114,5.01803531,2476.1,2476.0,0.38146218]
[1747510589295,13.0523001,2476.1,2476.0,0.38146218]
[1747510589460,15.98882759,2476.1,2476.0,0.38146218]
[1747510590164,13.01803531,2476.1,2476.0,0.38146218]
[1747510591791,4.58909847,2475.8,2475.7,0.47815424]
[1747510592006,17.64994962,2475.8,2475.7,0.47815424]
[1747510593498,17.64994962,2475.8,2475.7,0.38294634]
[1747510593883,5.02889847,2475.8,2475.7,0.38294634]
[1747510594083,12.93589847,2475.8,2475.7,0.38294634]
[1747510595620,17.63894962,2475.8,2475.7,0.38294634]
[1747510596925,17.63305078,2475.8,2475.7,0.38294634]
[1747510599937,4.58975115,2475.4,2475.3,0.47815424]
[1747510601821,4.58975115,2475.4,2475.3,0.38339507]
[1747510602022,4.03975115,2475.4,2475.3,0.38339507]
[1747510602238,14.08878103,2476.0,2475.3,0.38339507]
[1747510602239,10.05,2476.0,2475.3,0.38339507]
[1747510602440,4.03941226,2475.7,2475.4,0.7676]
[1747510602640,4.03957601,2475.6,2475.4,0.7676]
[1747510603157,4.03932892,2475.7,2475.5,0.38339507]
[1747510603645,4.03942478,2475.6,2475.5,0.38339507]
[1747510603822,4.03942478,2475.6,2475.5,0.62460139]
[1747510607962,4.03942478,2475.6,2475.5,1.10381837]
[1747510608178,0.55,2475.9,2475.5,1.10381837]
[1747510608179,4.03929806,2475.7,2475.5,1.10381837]
[1747510608375,4.0390175,2475.9,2475.5,1.10381837]
[1747510608531,4.03927379,2475.7,2475.5,1.10381837]
[1747510608865,4.03942478,2475.6,2475.5,0.86261205]
[1747510610984,4.03942478,2475.6,2475.5,0.38339507]
[1747510611699,4.03267739,2475.6,2475.5,0.38339507]
[1747510613257,13.02247739,2475.6,2475.5,0.38339507]
[1747510613456,8.0,2474.9,2473.3,0.8237]
[1747510613676,9.73725881,2474.7,2473.3,4.86681598]
[1747510613891,17.73725881,2474.7,2473.5,4.04276612]
[1747510614094,0.55,2474.6,2473.9,0.7743]
[1747510614261,4.04122044,2474.5,2473.9,0.7743]
[1747510614456,4.04113978,2474.6,2473.9,0.7743]
[1747510614663,4.04141016,2474.4,2473.9,0.7743]
[1747510614973,4.04141016,2474.4,2473.9,8.7613]
[1747510614974,4.04138376,2474.4,2473.9,8.7613]
[1747510615162,4.04138376,2474.4,2474.0,0.87613]
[1747510620208,0.4398,2475.1,2474.0,0.87613]
[1747510620507,7.979,2475.3,2474.7,4.04078643]
[1747510620663,7.979,2475.3,2474.9,0.801]
[1747510620999,12.01892961,2475.3,2474.9,8.791]
[1747510621219,4.03965448,2475.5,2474.9,9.6701]
[1747510621381,4.03946892,2475.6,2475.0,0.801]
[1747510621767,4.0395902,2475.5,2475.0,0.801]
[1747510622198,10.48779378,2475.8,2475.0,0.801]
[1747510622407,12.01533396,2475.7,2475.2,0.801]
[1747510623109,4.03953884,2475.6,2475.2,0.801]
[1747510623315,4.03935069,2475.7,2475.2,0.801]
[1747510623828,4.03960496,2475.5,2475.2,0.801]
[1747510624164,18.46483945,2475.8,2475.2,0.801]
[1747510624369,4.03942735,2475.6,2475.2,0.801]
[1747510624809,4.03932994,2475.7,2475.2,0.801]
[1747510624984,4.03942856,2475.6,2475.2,1.38183755]
[1747510625181,14.42567407,2475.8,2475.2,0.801]
[1747510625502,4.03991435,2475.3,2474.5,8.801]
[1747510625709,4.04005632,2475.3,2474.9,7.989]
[1747510625906,4.0401009,2475.2,2474.9,7.989]
[1747510626231,4.03999369,2475.3,2475.2,0.00822035]
[1747510629000,20.02725848,2475.3,2475.2,0.00822035]
[1747510629326,20.02725848,2475.3,2474.7,0.801]
[1747510629327,4.04045652,2475.0,2474.7,0.801]
[1747510629883,6.44867407,2475.8,2474.8,4.04063407]
[1747510630113,18.45185985,2475.8,2475.1,4.04017124]
[1747510630415,4.03929938,2475.7,2475.3,0.801]
[1747510630820,4.03947618,2475.6,2475.3,0.801]
[1747510631020,4.03959054,2475.5,2475.3,0.801]
[1747510631922,18.4518461,2475.8,2475.3,0.801]
[1747510632304,4.03931424,2475.7,2475.3,0.801]
[1747510632510,4.03944434,2475.6,2475.3,0.801]
[1747510633436,4.03930445,2475.7,2475.3,0.801]
[1747510633745,6.44867407,2475.8,2475.4,0.801]
[1747510633899,4.0379229,2476.6,2475.8,4.03903775]
[1747510634093,4.03796749,2476.5,2476.0,0.7963]
[1747510634502,7.973,2476.6,2476.0,8.7843]
[1747510634709,4.03838906,2476.3,2476.0,8.7843]
[1747510635008,4.03847435,2476.2,2476.0,8.7843]
[1747510635328,4.03847435,2476.2,2476.0,0.7963]
[1747510635531,4.0386091,2476.1,2476.0,0.7963]
[1747510635735,4.44247001,2476.1,2476.0,0.7963]
[1747510635939,4.0386091,2476.1,2476.0,0.7963]
[1747510636598,0.4398,2476.3,2475.7,0.7963]
[1747510636799,4.03891641,2476.0,2475.7,8.7833]
[1747510637838,4.03867247,2476.1,2475.7,8.7833]
[1747510638054,1.20106435,2476.5,2475.8,0.04038897]
[1747510638260,4.03811985,2476.4,2475.8,0.7963]
[1747510638822,4.03854929,2476.2,2475.8,0.7963]
[1747510639840,4.03837279,2476.3,2475.8,0.7963]
[1747510640416,4.03849684,2476.2,2475.8,0.7963]
[1747510640755,4.03412399,2476.2,2475.8,0.7963]
[1747510641263,4.03412399,2476.2,2475.6,8.7998]
[1747510641264,4.03926162,2475.7,2475.6,8.7998]
[1747510641432,4.03926162,2475.7,2475.4,7.987]
[1747510641632,4.47890669,2475.8,2475.3,0.8128]
[1747510641948,4.03975115,2475.4,2475.3,0.8128]
[1747510642456,8.0,2475.8,2475.3,0.8128]
[1747510642664,4.03956515,2475.6,2475.3,0.8128]
[1747510642967,4.03975115,2475.4,2475.3,0.8128]
[1747510644075,9.5959,2475.8,2475.3,0.8128]
[1747510644279,4.03947645,2475.6,2475.3,0.8128]
[1747510644572,9.5959,2475.8,2475.3,0.8128]
[1747510644871,4.03975115,2475.4,2475.3,0.8128]
[1747510645976,12.58991435,2475.3,2475.2,0.00822035]
[1747510646130,13.02971435,2475.3,2475.2,0.00822035]
[1747510647274,4.04089384,2474.7,2474.6,0.00822035]
[1747510647442,11.98889384,2474.7,2474.6,0.00822035]
[1747510648656,1.9993124,2475.2,2474.6,0.00822035]
[1747510648961,4.04073666,2474.8,2474.6,0.00822035]
[1747510649359,4.04089384,2474.7,2474.6,0.00822035]
[1747510649966,4.04074318,2474.8,2474.6,0.00822035]
[1747510650859,4.04089384,2474.7,2474.6,0.00822035]
[1747510651056,4.04089384,2474.7,2474.6,0.39129359]
[1747510651268,4.84904014,2474.7,2474.6,0.39129359]
[1747510651468,5.43330493,2474.7,2474.6,0.39129359]
[1747510651768,13.39904014,2474.7,2474.6,0.39129359]
[1747510653346,13.39904014,2474.7,2474.6,0.00822035]
[1747510654273,10.05,2475.0,2474.6,0.00822035]
[1747510654665,4.04042653,2475.0,2474.6,0.00822035]
[1747510654985,4.04042653,2475.0,2474.7,7.957]
[1747510655361,4.04058417,2474.9,2474.7,7.957]
[1747510655571,4.04058417,2474.9,2474.7,8.94296204]
[1747510656172,4.04058417,2474.9,2474.8,0.00822035]
[1747510656776,4.07484896,2474.9,2474.8,0.00822035]
[1747510656977,4.04058417,2474.9,2474.8,0.00822035]
[1747510657687,12.02584896,2474.9,2474.8,0.00822035]
[1747510657983,11.99158417,2474.9,2474.8,0.00822035]
[1747510658676,14.18876459,2474.9,2474.8,0.00822035]
[1747510659177,4.04089384,2474.7,2474.6,0.00822035]
[1747510665480,8.4398,2475.0,2474.6,0.00822035]
[1747510665782,4.04073056,2474.8,2474.6,0.79262035]
[1747510666458,4.04089384,2474.7,2474.6,0.79262035]
[1747510669785,4.03543629,2474.7,2474.6,0.79262035]
[1747510670959,4.03543629,2474.7,2474.6,0.00822035]
[1747510671988,6.62496542,2474.7,2474.6,0.00822035]
[1747510673501,4.47523629,2474.7,2474.6,0.00822035]
[1747510673667,4.03543629,2474.7,2474.6,0.00822035]
[1747510675772,4.03543629,2474.7,2474.6,0.39249713]
[1747510677393,7.903,2474.8,2474.6,0.39249713]
[1747510677594,4.04089384,2474.7,2474.6,0.39249713]
[1747510678870,4.07515863,2474.7,2474.6,0.39249713]
[1747510679208,4.04089384,2474.7,2474.6,0.39249713]
[1747510679724,11.92389384,2474.7,2474.6,0.39249713]
[1747510680435,7.883,2474.7,2474.6,0.39249713]
[1747510680596,4.04080883,2474.8,2474.7,0.8315]
[1747510681128,7.883,2475.0,2474.7,0.8315]
[1747510681129,4.04064029,2474.9,2474.7,0.8315]
[1747510681313,4.04073056,2474.8,2474.7,0.8315]
[1747510681506,4.04064029,2474.9,2474.7,0.8315]
[1747510681723,4.04073056,2474.8,2474.7,0.8315]
[1747510682527,4.04071083,2474.9,2474.7,0.8315]
[1747510682927,8.0,2475.3,2474.7,0.8315]
[1747510683158,4.03963423,2475.5,2474.8,4.04059086]
[1747510683438,4.03963423,2475.5,2474.9,1.72279403]
[1747510683439,4.03983256,2475.4,2474.9,1.72279403]
[1747510683643,4.03993816,2475.3,2474.9,1.72279403]
[1747510684339,7.877,2475.5,2474.9,1.72279403]
[1747510684505,4.03447518,2475.0,2474.9,0.8315]
[1747510684707,4.04032139,2475.1,2475.0,0.86460437]
[1747510686328,4.03210104,2475.1,2475.0,0.86460437]
[1747510686939,8.4398,2475.7,2475.0,0.86460437]
[1747510687140,4.03973804,2475.5,2475.1,0.95981044]
[1747510687319,4.03975564,2475.4,2475.2,0.8093]
[1747510688943,4.03975564,2475.4,2475.3,0.3842584]
[1747510692050,4.03965192,2475.5,2475.3,0.3842584]
[1747510692352,4.03975216,2475.4,2475.2,0.8093]
[1747510693250,4.03877501,2476.0,2475.3,4.03976105]
[1747510693543,4.03903381,2475.9,2475.4,9.11381606]
[1747510693844,4.0394095,2475.7,2475.5,7.901]
[1747510694349,4.03942478,2475.6,2475.5,0.38315618]
[1747510695649,4.03942478,2475.6,2475.4,0.48034597]
[1747510695843,4.03958796,2475.5,2475.4,0.48034597]
[1747510697783,4.03942478,2475.6,2475.2,0.7698]
[1747510697928,13.06365275,2475.5,2475.4,0.38306536]
[1747510698126,14.21913044,2475.5,2475.4,0.38306536]
[1747510699057,14.21409216,2475.5,2475.4,0.38306536]
[1747510699262,19.89554968,2475.5,2475.4,0.38306536]
[1747510699766,4.04024079,2475.1,2475.0,1.29854597]
[1747510701162,4.04024079,2475.1,2475.0,0.8182]
[1747510702678,4.03942478,2475.6,2475.0,0.8182]
[1747510702969,4.03976105,2475.4,2475.1,7.901]
[1747510703163,4.03991435,2475.3,2475.2,0.87192]
[1747510703356,4.0398444,2475.4,2475.2,0.87192]
[1747510703661,4.03975115,2475.4,2475.2,0.87192]
[1747510703875,4.03991086,2475.4,2475.2,0.87192]
[1747510704172,4.03991086,2475.4,2475.3,0.38354825]
[1747510708369,4.03947779,2475.6,2475.3,0.38354825]
[1747510708666,4.03924111,2475.8,2475.4,0.805]
[1747510708831,4.47873073,2476.0,2475.4,0.805]
[1747510709032,7.829,2476.1,2475.5,0.04039211]
[1747510709273,4.0387968,2476.0,2475.7,0.7663]
[1747510709676,4.03888877,2476.0,2475.7,0.7663]
[1747510709880,10.05,2476.3,2475.7,0.7663]
[1747510710087,4.03877636,2476.0,2475.8,0.38354825]
[1747510713080,4.03863196,2476.1,2475.8,0.38354825]
[1747510713245,4.03863196,2476.1,2475.8,1.33036767]
[1747510713443,4.03863196,2476.1,2475.9,0.38354825]
[1747510713647,4.03248796,2476.1,2475.9,0.38354825]
[1747510715050,4.03840932,2476.3,2476.0,0.8178]
[1747510715356,4.03846973,2476.2,2476.0,1.03261677]
[1747510715575,4.03846973,2476.2,2476.1,0.38354825]
[1747510716478,4.038446,2476.2,2476.1,0.38354825]
[1747510720890,0.4398,2476.6,2476.1,0.38354825]
[1747510721083,4.03813837,2476.4,2476.1,0.38354825]
[1747510721254,4.0382961,2476.3,2476.1,0.38354825]
[1747510721795,4.0382961,2476.3,2476.1,8.21954825]
[1747510721970,4.0382961,2476.3,2476.1,8.7612165]
[1747510722293,4.038446,2476.2,2476.1,8.7612165]
[1747510722792,4.03834457,2476.3,2476.1,8.7612165]
[1747510725667,0.03426479,2476.2,2475.8,8.5894]
[1747510725973,4.03869698,2476.1,2475.8,8.5894]
[1747510726372,0.55,2476.4,2475.8,8.5894]
[1747510726597,4.03870639,2476.1,2475.8,8.5894]
[1747510727692,4.03870639,2476.1,2475.9,0.3831797]
[1747510727996,7.762,2476.3,2475.9,0.3831797]
[1747510728218,0.4398,2476.6,2475.9,1.28043767]
[1747510728354,4.03805667,2476.5,2476.0,0.7534]
[1747510729088,4.03814836,2476.4,2476.1,0.3831797]
[1747510729991,4.03805667,2476.5,2476.1,0.3831797]
[1747510730191,4.03813403,2476.4,2476.1,0.3831797]
[1747510730392,4.03813403,2476.4,2476.1,0.58656347]
[1747510730904,4.03813403,2476.4,2476.2,0.3831797]
[1747510732600,4.03828292,2476.3,2476.2,0.3831797]
[1747510733508,4.07254771,2476.3,2476.2,0.3831797]
[1747510734508,4.03828292,2476.3,2476.2,0.3831797]
[1747510734804,5.13444598,2476.3,2476.2,0.3831797]
[1747510734969,13.16871077,2476.3,2476.2,0.3831797]
[1747510735170,4.03877221,2476.0,2475.9,0.48034597]
[1747510735508,4.073037,2476.0,2475.9,0.48034597]
[1747510736112,4.512837,2476.0,2475.9,0.48034597]
[1747510736412,16.58900566,2476.0,2475.9,0.48034597]
[1747510736612,17.10474087,2476.0,2475.9,0.48034597]
[1747510737172,8.9898,2475.9,2475.2,0.48034597]
[1747510737390,4.03991435,2475.3,2475.2,0.48034597]
[1747510738615,4.03991435,2475.3,2475.2,0.86473628]
[1747510740531,4.04007756,2475.2,2475.1,0.38439031]
[1747510742817,4.03339621,2475.2,2475.1,0.38439031]
[1747510744922,5.28052958,2475.2,2475.1,0.38439031]
[1747510745219,4.03339621,2475.2,2475.1,0.38439031]
[1747510745516,4.04025705,2475.1,2474.9,0.7827]
[1747510746625,4.04040404,2475.0,2474.7,9.02004597]
[1747510746797,4.04067435,2474.9,2474.7,8.5397]
[1747510747187,7.742,2475.4,2474.7,8.5397]
[1747510747387,4.04012156,2475.2,2474.8,0.85397]
[1747510747802,4.04012156,2475.2,2474.9,0.38310056]
[1747510749832,4.04024398,2475.1,2474.9,0.38310056]
[1747510749991,4.04024398,2475.1,2474.8,0.85397]
[1747510750827,4.03991435,2475.3,2474.8,0.85397]
[1747510750993,4.48085714,2474.6,2474.5,1.59034597]
[1747510751193,12.48085714,2474.6,2474.5,1.59034597]
[1747510751400,28.59585714,2474.6,2474.5,1.59034597]
[1747510751928,0.4398,2475.0,2474.5,2.34704597]
[1747510752103,4.04067249,2474.9,2474.5,2.34704597]
[1747510752311,4.0404238,2475.0,2474.6,0.2347046]
[1747510752607,4.04065142,2474.9,2474.6,0.2347046]
[1747510752991,4.0404238,2475.0,2474.6,0.2347046]
[1747510753191,4.04056729,2474.9,2474.6,0.2347046]
[1747510753390,0.4398,2475.6,2474.6,0.2347046]
[1747510753631,7.819,2475.5,2474.7,0.7567]
[1747510754021,4.0404625,2475.0,2474.7,0.7567]
[1747510755232,4.0404625,2475.0,2474.8,0.38278653]
[1747510755436,7.819,2475.5,2474.8,0.38278653]
[1747510755622,4.04056729,2474.9,2474.8,0.38278653]
[1747510755827,11.86056729,2474.9,2474.8,0.38278653]
[1747510756731,4.04102934,2474.7,2474.5,1.11]
[1747510757232,4.04105714,2474.6,2474.5,1.11]
[1747510757439,4.03636008,2474.6,2474.5,1.11]
[1747510763361,4.88806818,2474.6,2474.5,1.11]
[1747510764072,12.68133297,2474.6,2474.5,1.11]
[1747510764271,12.64706818,2474.6,2474.5,1.11]
[1747510766234,4.04102685,2474.7,2474.5,1.11]
[1747510766434,11.83405714,2474.6,2474.5,1.11]
[1747510767100,12.38405714,2474.6,2474.5,1.11]
[1747510767284,12.82385714,2474.6,2474.5,1.11]
[1747510767477,14.88215756,2474.6,2474.5,1.11]
[1747510769105,22.88215756,2474.6,2474.5,1.11]
[1747510769649,32.93215756,2474.6,2474.5,1.11]
[1747510772098,32.92635979,2474.6,2474.5,1.11]
[1747510772511,37.18135979,2474.6,2474.5,1.11]
[1747510772852,51.21543857,2474.6,2474.5,1.1063745]
[1747510773108,50.98869157,2474.6,2474.5,0.36874777]
[1747510773301,4.04328011,2473.3,2473.0,0.48034597]
[1747510773601,4.04319026,2473.3,2473.1,0.758]
[1747510773890,11.84319026,2473.3,2473.1,0.758]
[1747510774104,4.04334465,2473.2,2473.1,0.758]
[1747510777997,8.29912465,2473.7,2473.1,0.758]
[1747510778181,11.82673617,2473.6,2473.1,0.758]
[1747510778502,11.82678575,2473.6,2473.1,0.758]
[1747510778656,11.83578575,2473.6,2473.1,0.758]
[1747510778990,4.04286474,2473.5,2473.1,0.758]
[1747510781610,4.36800477,2473.9,2473.1,0.758]
[1747510781779,4.04274421,2473.6,2473.0,4.04360343]
[1747510782092,11.82843805,2473.8,2472.8,12.5243132]
[1747510782093,4.04259374,2473.7,2473.2,0.7689]
[1747510782688,4.04259374,2473.7,2473.3,0.38309903]